bitfinex/quotes_SOLUSD_20250902
["timestamp","ask_amount","ask_price","bid_price","bid_amount"]
[1756833908304,8.81766141,203.28,203.26,13.59559401]
[1756833908508,0.68,203.27,203.23,13.59559401]
[1756833908826,8.13766141,203.24,203.21,13.59559401]
[1756833909028,5.79908699,203.29,203.24,13.59559401]
[1756833909206,0.06,203.26,203.24,13.59559401]
[1756833909526,0.06,203.26,203.23,8.13766141]
[1756833909733,0.06,203.26,203.23,13.59559401]
[1756833910101,0.06,203.26,203.21,5.41091453]
[1756833910102,0.06,203.26,203.25,8.13766141]
[1756833910301,0.06,203.26,203.25,13.73775558]
[1756833910660,0.06,203.26,203.25,13.59559401]
[1756833910828,0.06,203.26,203.25,22.36541699]
[1756833911132,0.06,203.26,203.25,23.14174505]
[1756833911299,0.06,203.26,203.25,22.64974013]
[1756833911910,0.06,203.26,203.25,27.56978933]
[1756833912111,0.2,203.29,203.28,26.0]
[1756833912310,0.69,203.45,203.33,26.0]
[1756833912517,0.69,203.45,203.43,8.13766141]
[1756833913117,0.69,203.44,203.43,13.59559401]
[1756833913317,0.69,203.44,203.39,8.13766141]
[1756833913522,0.69,203.43,203.39,8.13766141]
[1756833913731,0.69,203.46,203.41,8.13766141]
[1756833913916,0.69,203.45,203.41,8.13766141]
[1756833914424,0.69,203.48,203.45,13.59559401]
[1756833914624,0.69,203.5,203.47,13.59559401]
[1756833914813,0.69,203.49,203.47,13.59559401]
[1756833915016,0.69,203.49,203.47,21.73325542]
[1756833915212,0.69,203.49,203.43,13.59559401]
[1756833915532,0.69,203.49,203.48,12.26180773]
[1756833915827,0.69,203.56,203.49,13.59559401]
[1756833916036,0.69,203.56,203.53,13.59559401]
[1756833916233,0.69,203.55,203.5,12.26180773]
[1756833916415,0.69,203.54,203.51,13.59559401]
[1756833916925,0.69,203.53,203.51,13.59559401]
[1756833917645,5.60340436,203.53,203.51,13.59559401]
[1756833917848,4.91340436,203.53,203.51,13.59559401]
[1756833918313,12.95180773,203.52,203.46,12.26180773]
[1756833918512,12.26180773,203.5,203.45,13.59559401]
[1756833918712,4.91340436,203.53,203.45,18.58707023]
[1756833918713,12.95180773,203.49,203.45,18.58707023]
[1756833919011,0.69,203.48,203.45,18.58707023]
[1756833919720,12.26180773,203.47,203.45,18.58707023]
[1756833920626,12.26180773,203.46,203.45,18.58707023]
[1756833921024,12.26180773,203.47,203.45,18.58707023]
[1756833921621,12.26180773,203.46,203.45,18.58707023]
[1756833921932,12.26180773,203.46,203.45,13.59559401]
[1756833922237,17.86677873,203.46,203.38,13.59559401]
[1756833922443,12.26180773,203.43,203.42,13.59559401]
[1756833923033,0.69,203.46,203.41,13.59559401]
[1756833923342,12.26180773,203.44,203.41,13.59559401]
[1756833923543,12.26180773,203.44,203.42,13.59559401]
[1756833923847,0.69,203.5,203.42,18.63406702]
[1756833924149,0.69,203.52,203.45,13.59559401]
[1756833924316,12.26180773,203.5,203.45,26.0]
[1756833924517,12.26180773,203.5,203.45,26.49]
[1756833925040,12.26180773,203.5,203.45,26.0]
[1756833925237,12.26180773,203.49,203.45,26.0]
[1756833925418,12.26180773,203.48,203.45,13.59559401]
[1756833926238,12.26180773,203.48,203.44,13.59559401]
[1756833926422,0.69,203.51,203.44,13.59559401]
[1756833926623,12.26180773,203.48,203.44,13.59559401]
[1756833926838,12.26180773,203.49,203.44,13.59559401]
[1756833927543,17.17605514,203.49,203.44,13.59559401]
[1756833927748,17.86605514,203.49,203.44,13.59559401]
[1756833927954,12.26180773,203.46,203.44,13.59559401]
[1756833928124,12.26180773,203.45,203.44,13.59559401]
[1756833928730,12.26180773,203.45,203.43,13.59559401]
[1756833928922,12.26180773,203.44,203.43,13.59559401]
[1756833929318,0.69,203.48,203.43,13.59559401]
[1756833929543,12.26180773,203.46,203.43,13.59559401]
[1756833929746,12.26180773,203.45,203.43,13.59559401]
[1756833931746,12.26180773,203.44,203.43,13.59559401]
[1756833933456,12.95180773,203.44,203.43,13.59559401]
[1756833933661,17.86726191,203.44,203.43,13.59559401]
[1756833934536,12.95180773,203.44,203.43,13.59559401]
[1756833934739,12.26180773,203.44,203.43,13.59559401]
[1756833935542,26.0,203.52,203.43,13.59559401]
[1756833935740,0.69,203.51,203.44,0.14216157]
[1756833935939,12.26180773,203.49,203.44,0.14216157]
[1756833936440,12.95180773,203.49,203.44,0.14216157]
[1756833936926,0.69,203.49,203.44,0.14216157]
[1756833937128,12.95180773,203.49,203.44,0.14216157]
[1756833937422,12.26180773,203.48,203.44,0.14216157]
[1756833938233,12.95180773,203.47,203.43,13.59559401]
[1756833939026,0.69,203.47,203.43,13.59559401]
[1756833939645,12.26180773,203.48,203.43,13.59559401]
[1756833939846,12.26180773,203.47,203.43,13.59559401]
[1756833940053,17.86630833,203.48,203.43,25.85740174]
[1756833940251,12.95180773,203.48,203.43,25.85740174]
[1756833940669,0.69,203.48,203.43,25.85740174]
[1756833940835,17.866307,203.48,203.43,25.85740174]
[1756833941034,17.866307,203.48,203.43,13.59559401]
[1756833941241,12.26180773,203.46,203.43,13.59559401]
[1756833941431,0.65,203.45,203.43,13.59559401]
[1756833941959,12.91180773,203.47,203.43,13.59559401]
[1756833942138,0.65,203.46,203.43,13.59559401]
[1756833942333,12.91180773,203.46,203.43,13.59559401]
[1756833942857,0.65,203.46,203.43,13.59559401]
[1756833943058,17.82693318,203.46,203.43,13.59559401]
[1756833943467,0.65,203.45,203.43,13.59559401]
[1756833943960,0.65,203.52,203.44,0.49]
[1756833944281,12.26180773,203.47,203.43,13.59559401]
[1756833944558,12.26180773,203.47,203.43,18.51128773]
[1756833944742,0.06,203.53,203.47,13.59559401]
[1756833944933,12.26180773,203.5,203.47,13.59559401]
[1756833945134,0.06,203.53,203.48,0.14216157]
[1756833945357,0.06,203.53,203.49,26.34740174]
[1756833945859,0.06,203.53,203.49,14.08559401]
[1756833946073,0.06,203.53,203.5,0.49]
[1756833946833,0.06,203.53,203.48,14.22775558]
[1756833947034,0.06,203.53,203.52,18.50911602]
[1756833947539,0.06,203.53,203.52,18.99911602]
[1756833947939,0.06,203.53,203.52,18.50911602]
[1756833948144,0.06,203.53,203.52,13.59559401]
[1756833949160,0.06,203.53,203.52,18.65127759]
[1756833949334,0.06,203.53,203.52,19.14127759]
[1756833949533,0.06,203.53,203.52,31.40308532]
[1756833949752,0.06,203.53,203.52,19.14127759]
[1756833949957,0.06,203.53,203.52,31.40308532]
[1756833951346,0.06,203.53,203.52,71.08308532]
[1756833951758,0.06,203.53,203.52,13.59559401]
[1756833952264,12.97180773,203.53,203.52,13.59559401]
[1756833953359,0.06,203.53,203.52,13.59559401]
[1756833953567,12.97180773,203.53,203.52,13.59559401]
[1756833954042,12.97180773,203.53,203.45,0.49152125]
[1756833954246,12.26180773,203.5,203.46,53.23559401]
[1756833954742,0.06,203.53,203.5,13.73775558]
[1756833954942,0.06,203.53,203.52,25.99956331]
[1756833955149,0.06,203.53,203.52,30.91308532]
[1756833955346,0.06,203.53,203.52,31.40308532]
[1756833955548,0.06,203.53,203.51,13.59559401]
[1756833955858,0.06,203.53,203.51,53.31559401]
[1756833956762,0.06,203.53,203.51,13.59559401]
[1756833956956,12.91180773,203.52,203.51,13.59559401]
[1756833957154,0.06,203.53,203.5,13.59559401]
[1756833957358,0.06,203.53,203.52,25.85740174]
[1756833957558,0.06,203.53,203.52,25.99956331]
[1756833957747,0.06,203.53,203.52,52.48956331]
[1756833959168,0.06,203.53,203.52,91.75956331]
[1756833959767,0.06,203.53,203.52,79.35559401]
[1756833960352,0.06,203.53,203.52,84.26911602]
[1756833960866,0.06,203.53,203.52,84.24911602]
[1756833961254,0.06,203.53,203.52,39.59559401]
[1756833961465,0.71,203.53,203.52,39.59559401]
[1756833961645,0.71,203.53,203.51,39.74]
[1756833961842,0.71,203.53,203.52,13.59559401]
[1756833962039,0.06,203.53,203.52,13.59559401]
[1756833963252,0.06,203.53,203.52,25.85740174]
[1756833963472,0.06,203.53,203.52,26.34740174]
[1756833963670,0.06,203.53,203.52,26.48956331]
[1756833963972,0.06,203.53,203.52,57.40308532]
[1756833965085,0.06,203.53,203.52,56.91308532]
[1756833965254,0.06,203.53,203.52,53.29559401]
[1756833965255,0.71,203.53,203.52,53.29559401]
[1756833965449,0.06,203.53,203.52,53.29559401]
[1756833966072,0.06,203.53,203.52,70.47092375]
[1756833966260,0.06,203.53,203.52,71.38740846]
[1756833966853,0.06,203.53,203.52,74.95473089]
[1756833967876,0.06,203.58,203.55,26.0]
[1756833968173,5.48775336,203.8,203.66,26.0]
[1756833968385,2.57020757,203.83,203.72,13.59559401]
[1756833968554,20.0,203.93,203.67,40.51]
[1756833968555,12.91180773,203.82,203.77,13.59559401]
[1756833968884,44.51882478,203.93,203.77,13.59559401]
[1756833968885,0.65,203.81,203.77,13.59559401]
[1756833969085,12.26180773,203.79,203.75,13.59559401]
[1756833969376,26.0,203.88,203.74,40.64]
[1756833969377,0.65,203.88,203.84,13.59559401]
[1756833969554,0.65,203.88,203.84,25.85740174]
[1756833969882,4.90416719,203.91,203.84,25.85740174]
[1756833970047,12.91180773,203.9,203.84,25.85740174]
[1756833970249,12.26180773,203.88,203.85,13.59559401]
[1756833970447,0.65,203.87,203.84,4.94312769]
[1756833970669,0.65,203.86,203.85,13.59559401]
[1756833970870,0.65,203.86,203.83,12.26180773]
[1756833971281,0.71,203.92,203.86,0.14216157]
[1756833971457,12.26180773,203.91,203.82,26.0]
[1756833971652,12.26180773,203.89,203.83,66.97740174]
[1756833971854,12.26180773,203.88,203.83,13.59559401]
[1756833972077,12.26180773,203.88,203.83,25.85740174]
[1756833972275,12.97180773,203.87,203.83,13.59559401]
[1756833972474,12.26180773,203.85,203.81,4.81565398]
[1756833972689,12.97180773,203.84,203.8,13.59559401]
[1756833972866,12.97180773,203.83,203.79,13.59559401]
[1756833973186,0.71,203.82,203.79,13.59559401]
[1756833973353,0.71,203.82,203.75,13.59559401]
[1756833973555,12.26180773,203.8,203.74,25.85740174]
[1756833973781,12.26180773,203.79,203.74,13.59559401]
[1756833974082,17.87900783,203.79,203.74,13.59559401]
[1756833975278,0.71,203.78,203.74,13.59559401]
[1756833975486,4.9072001,203.79,203.72,13.59559401]
[1756833975487,0.71,203.77,203.72,13.59559401]
[1756833975779,4.9072001,203.79,203.72,4.88412178]
[1756833975780,8.10694295,203.75,203.72,4.88412178]
[1756833975956,12.26508821,203.84,203.71,13.59559401]
[1756833976156,8.81694295,203.81,203.76,13.59559401]
[1756833976383,0.71,203.81,203.76,13.59559401]
[1756833976576,8.81694295,203.84,203.8,13.59559401]
[1756833976894,0.71,203.84,203.8,13.59559401]
[1756833977867,8.81694295,203.83,203.78,8.10694295]
[1756833978070,0.71,203.83,203.78,8.10694295]
[1756833978274,8.10694295,203.81,203.77,13.59559401]
[1756833978474,8.10694295,203.79,203.76,13.59559401]
[1756833978791,8.10694295,203.77,203.73,13.59559401]
[1756833978959,8.10694295,203.76,203.73,13.59559401]
[1756833979376,8.81694295,203.77,203.73,13.59559401]
[1756833979579,0.71,203.77,203.73,13.59559401]
[1756833979782,8.10694295,203.76,203.72,13.59559401]
[1756833979984,8.10694295,203.75,203.72,13.59559401]
[1756833980284,4.90821635,203.74,203.72,13.59559401]
[1756833980783,4.90821635,203.74,203.66,54.53559401]
[1756833980784,8.81694295,203.73,203.66,54.53559401]
[1756833980965,8.10694295,203.7,203.64,8.10694295]
[1756833981154,8.10694295,203.69,203.63,49.06694295]
[1756833981360,17.17875723,203.74,203.63,49.06694295]
[1756833981361,8.10694295,203.68,203.63,49.06694295]
[1756833981560,8.10694295,203.68,203.64,13.59559401]
[1756833981973,8.10694295,203.68,203.64,18.58978713]
[1756833982208,8.10694295,203.68,203.56,14.75615454]
[1756833982370,8.10694295,203.66,203.6,8.10694295]
[1756833982704,8.10694295,203.62,203.56,8.10694295]
[1756833983065,0.71,203.63,203.56,12.9934283]
[1756833983284,8.10694295,203.62,203.56,12.9934283]
[1756833983593,0.71,203.63,203.57,26.0]
[1756833983789,8.10694295,203.62,203.58,13.59559401]
[1756833984085,8.10694295,203.61,203.58,13.59559401]
[1756833984286,4.91159135,203.6,203.57,13.59559401]
[1756833984666,4.91159135,203.6,203.55,34.59694295]
[1756833984667,13.01830593,203.61,203.56,13.59559401]
[1756833985084,8.10694295,203.6,203.57,0.14216157]
[1756833985702,13.01830593,203.61,203.57,0.14216157]
[1756833985876,0.71,203.6,203.57,0.14216157]
[1756833986068,8.10694295,203.6,203.56,13.59559401]
[1756833986279,4.9118326,203.59,203.56,18.52240663]
[1756833986476,13.01877555,203.59,203.56,18.52240663]
[1756833986883,0.71,203.6,203.56,18.52240663]
[1756833986884,8.10694295,203.6,203.56,18.52240663]
[1756833987484,8.10694295,203.58,203.56,18.52240663]
[1756833987666,8.10694295,203.57,203.53,13.59559401]
[1756833988063,8.10694295,203.58,203.53,13.59559401]
[1756833988264,0.71,203.62,203.54,8.10694295]
[1756833988571,8.10694295,203.59,203.55,13.59559401]
[1756833988774,8.10694295,203.6,203.55,13.59559401]
[1756833989528,13.0178107,203.63,203.58,13.59559401]
[1756833989698,13.7278107,203.63,203.58,13.59559401]
[1756833990207,8.81694295,203.62,203.58,13.59559401]
[1756833990400,13.01831162,203.61,203.58,13.59559401]
[1756833990602,8.10694295,203.59,203.55,13.59559401]
[1756833990911,8.10694295,203.57,203.54,13.59559401]
[1756833991216,8.10694295,203.58,203.54,13.59559401]
[1756833991396,0.71,203.59,203.54,13.59559401]
[1756833991718,5.62136867,203.61,203.54,21.70253696]
[1756833992013,8.10694295,203.6,203.54,21.70253696]
[1756833992193,8.10694295,203.59,203.54,21.70253696]
[1756833992395,4.91193723,203.59,203.54,22.19253696]
[1756833992595,13.01888018,203.59,203.54,22.19253696]
[1756833992804,13.01888018,203.59,203.54,14.08559401]
[1756833993514,4.91193723,203.59,203.54,22.19253696]
[1756833993718,0.71,203.61,203.55,8.24910452]
[1756833993905,0.71,203.64,203.58,21.70253696]
[1756833994105,0.71,203.64,203.61,13.59559401]
[1756833994509,0.71,203.63,203.61,13.59559401]
[1756833994818,12.27475818,203.67,203.61,13.59559401]
[1756833994819,0.71,203.67,203.63,13.59559401]
[1756833995115,0.71,203.7,203.67,13.59559401]
[1756833995320,0.71,203.7,203.67,21.70253696]
[1756833995516,0.71,203.7,203.68,8.10694295]
[1756833995741,0.71,203.69,203.66,21.70253696]
[1756833995895,0.71,203.69,203.66,8.10694295]
[1756833996100,0.71,203.68,203.64,8.10694295]
[1756833996304,0.71,203.67,203.65,13.59559401]
[1756833996516,4.90966221,203.68,203.65,21.70253696]
[1756833996695,0.71,203.67,203.65,21.70253696]
[1756833997099,0.71,203.67,203.64,8.10694295]
[1756833997301,0.71,203.66,203.63,13.59559401]
[1756833997518,8.81694295,203.69,203.64,8.10694295]
[1756833997726,0.71,203.69,203.64,8.10694295]
[1756833997916,8.10694295,203.7,203.66,13.59559401]
[1756833998223,0.71,203.69,203.66,13.59559401]
[1756833998405,0.71,203.69,203.65,13.59559401]
[1756833998806,4.90966221,203.68,203.65,13.59559401]
[1756833999516,4.90966221,203.68,203.62,39.73775558]
[1756833999705,5.61944359,203.69,203.65,13.59559401]
[1756833999900,5.61944359,203.69,203.62,13.59559401]
[1756834000101,5.61944359,203.69,203.64,8.10694295]
[1756834000314,5.61944359,203.69,203.66,8.10694295]
[1756834000709,4.96920382,203.7,203.68,13.59559401]
[1756834000917,0.06,203.7,203.68,21.70253696]
[1756834001123,0.06,203.7,203.69,21.70253696]
[1756834001821,0.75,203.7,203.69,13.59559401]
[1756834002327,0.75,203.7,203.69,21.70253696]
[1756834002516,0.75,203.7,203.69,13.59559401]
[1756834002718,0.06,203.7,203.69,13.59559401]
[1756834004136,0.75,203.7,203.69,13.59559401]
[1756834005125,5.65918016,203.7,203.69,13.59559401]
[1756834005540,13.76612311,203.7,203.63,13.59559401]
[1756834005834,8.10694295,203.68,203.63,13.59559401]
[1756834006039,17.24213057,203.7,203.62,13.59559401]
[1756834006231,8.10694295,203.66,203.62,13.59559401]
[1756834006428,8.10694295,203.64,203.59,13.59559401]
[1756834006631,8.79694295,203.63,203.58,13.59559401]
[1756834006832,8.79694295,203.62,203.58,13.59559401]
[1756834007041,8.10694295,203.62,203.58,13.59559401]
[1756834007335,52.79461509,203.68,203.58,21.70253696]
[1756834007336,13.01777972,203.64,203.58,21.70253696]
[1756834007641,8.10694295,203.64,203.59,8.10694295]
[1756834007839,8.79694295,203.65,203.6,13.59559401]
[1756834008048,13.01709953,203.66,203.6,22.19253696]
[1756834008411,8.10694295,203.65,203.6,21.70253696]
[1756834008907,8.10694295,203.64,203.59,13.59559401]
[1756834009143,5.60086775,203.63,203.59,13.59559401]
[1756834009546,13.7078107,203.63,203.59,13.59559401]
[1756834009747,5.60086775,203.63,203.59,13.59559401]
[1756834010047,13.7078107,203.63,203.59,13.59559401]
[1756834010251,8.10694295,203.6,203.56,13.59559401]
[1756834010424,0.69,203.62,203.56,13.59559401]
[1756834010619,8.10694295,203.6,203.56,13.59559401]
[1756834011310,8.10694295,203.6,203.55,0.14216157]
[1756834011506,8.79694295,203.59,203.55,13.73775558]
[1756834011736,0.69,203.59,203.55,13.73775558]
[1756834011906,0.69,203.59,203.55,13.59559401]
[1756834012110,8.10694295,203.59,203.55,13.59559401]
[1756834012540,8.79694295,203.59,203.55,13.59559401]
[1756834012925,8.10694295,203.58,203.55,13.59559401]
[1756834013322,8.10694295,203.58,203.5,52.69690693]
[1756834013323,8.10694295,203.56,203.51,13.59559401]
[1756834013537,8.10694295,203.56,203.53,13.59559401]
[1756834013742,0.69,203.62,203.55,8.10694295]
[1756834014047,0.69,203.66,203.61,8.10694295]
[1756834014345,8.10694295,203.68,203.63,8.10694295]
[1756834014346,13.70665914,203.68,203.63,8.10694295]
[1756834014634,8.10694295,203.66,203.61,8.10694295]
[1756834014807,8.10694295,203.66,203.62,13.59559401]
[1756834015013,0.69,203.65,203.59,13.73775558]
[1756834015213,0.69,203.65,203.62,13.59559401]
[1756834015430,0.75,203.7,203.65,13.59559401]
[1756834015937,0.69,203.69,203.65,8.10694295]
[1756834016338,0.69,203.68,203.65,8.10694295]
[1756834016529,0.06,203.7,203.67,13.59559401]
[1756834016927,0.06,203.7,203.66,8.10694295]
[1756834016928,0.69,203.69,203.66,13.59559401]
[1756834017634,0.06,203.7,203.66,8.10694295]
[1756834018535,0.69,203.69,203.66,8.10694295]
[1756834018931,4.96927882,203.7,203.64,13.59559401]
[1756834018932,0.06,203.7,203.68,21.70253696]
[1756834019740,0.06,203.7,203.67,8.10694295]
[1756834019935,0.06,203.7,203.68,13.59559401]
[1756834020240,0.06,203.7,203.66,8.10694295]
[1756834020440,0.69,203.69,203.67,13.59559401]
[1756834020751,0.06,203.7,203.67,8.10694295]
[1756834021540,0.06,203.7,203.67,21.70253696]
[1756834021743,0.06,203.7,203.69,8.10694295]
[1756834022328,0.06,203.7,203.68,13.59559401]
[1756834022926,0.06,203.7,203.6,8.65694295]
[1756834022927,0.69,203.69,203.6,8.65694295]
[1756834023231,8.10694295,203.66,203.59,3.57038278]
[1756834023434,8.79694295,203.66,203.61,21.70253696]
[1756834023628,0.69,203.68,203.64,13.59559401]
[1756834023828,0.69,203.67,203.64,13.59559401]
[1756834024146,0.69,203.66,203.6,13.59559401]
[1756834024356,8.10694295,203.64,203.6,13.59559401]
[1756834024563,8.10694295,203.61,203.58,0.03]
[1756834024720,8.10694295,203.59,203.58,0.03]
[1756834024925,0.69,203.65,203.58,8.13694295]
[1756834025250,0.69,203.65,203.61,13.59559401]
[1756834025554,0.69,203.65,203.59,13.59559401]
[1756834025860,8.79694295,203.68,203.63,13.59559401]
[1756834026055,0.69,203.67,203.63,13.59559401]
[1756834026263,0.69,203.66,203.63,13.59559401]
[1756834026569,0.06,203.7,203.65,8.10694295]
[1756834026725,0.06,203.7,203.68,8.10694295]
[1756834026927,0.06,203.7,203.69,21.70253696]
[1756834028025,0.06,203.7,203.69,13.59559401]
[1756834029523,0.75,203.7,203.65,8.10694295]
[1756834029722,0.75,203.7,203.66,13.59559401]
[1756834029926,0.06,203.72,203.69,34.10694295]
[1756834030168,0.06,203.82,203.69,34.10694295]
[1756834030169,0.06,203.82,203.8,13.59559401]
[1756834030451,0.06,203.82,203.81,14.51273177]
[1756834030626,0.06,203.82,203.81,23.10967472]
[1756834031026,0.06,203.82,203.81,39.59559401]
[1756834031477,0.06,203.82,203.76,0.49077345]
[1756834031628,0.06,203.82,203.8,8.10694295]
[1756834031832,0.06,203.82,203.8,13.59559401]
[1756834032362,0.06,203.82,203.78,21.70253696]
[1756834032552,0.75,203.82,203.76,13.59559401]
[1756834032757,0.75,203.82,203.78,8.10694295]
[1756834033052,0.75,203.82,203.8,13.59559401]
[1756834033275,0.69,203.81,203.77,8.10694295]
[1756834033630,0.69,203.81,203.78,8.10694295]
[1756834033928,0.06,203.82,203.8,13.59559401]
[1756834034337,0.06,203.82,203.81,13.59559401]
[1756834034867,0.06,203.82,203.81,21.70253696]
[1756834035037,0.06,203.82,203.81,13.59559401]
[1756834035368,0.06,203.82,203.81,21.70253696]
[1756834036368,0.06,203.82,203.81,13.59559401]
[1756834036748,0.75,203.82,203.78,8.10694295]
[1756834037078,0.06,203.82,203.79,8.10694295]
[1756834037371,0.75,203.82,203.79,8.10694295]
[1756834037671,0.75,203.82,203.79,12.22484813]
[1756834037870,5.65630865,203.82,203.79,12.22484813]
[1756834038379,0.69,203.81,203.79,12.22484813]
[1756834038584,0.06,203.82,203.79,12.22484813]
[1756834038783,0.06,203.82,203.71,13.07253196]
[1756834038941,12.22484813,203.79,203.72,13.59559401]
[1756834039143,12.22484813,203.79,203.69,0.49]
[1756834039144,0.69,203.79,203.74,25.82044214]
[1756834039345,0.69,203.78,203.74,25.82044214]
[1756834039547,0.69,203.78,203.75,12.22484813]
[1756834040068,17.13181955,203.8,203.75,12.22484813]
[1756834040379,0.06,203.85,203.79,24.59185783]
[1756834040666,0.06,203.85,203.84,38.47177498]
[1756834040855,0.06,203.85,203.84,79.81177498]
[1756834041058,12.91484813,203.99,203.92,13.59559401]
[1756834041370,12.91484813,203.98,203.92,12.22484813]
[1756834041566,0.69,203.98,203.94,13.59559401]
[1756834041870,12.91484813,203.97,203.9,13.59559401]
[1756834042060,17.12856307,203.93,203.9,13.59559401]
[1756834042370,0.69,204.01,203.93,0.14216157]
[1756834042571,12.91484813,204.01,203.96,13.59559401]
[1756834042873,12.91484813,204.0,203.94,12.22484813]
[1756834043241,12.91484813,204.0,203.93,13.59559401]
[1756834043466,12.22484813,203.99,203.95,13.59559401]
[1756834043669,12.22484813,203.97,203.92,13.59559401]
[1756834043842,12.91484813,203.96,203.92,13.59559401]
[1756834044045,0.69,203.95,203.92,13.59559401]
[1756834044853,12.91484813,203.94,203.85,13.87991715]
[1756834045181,12.22484813,203.93,203.87,12.22484813]
[1756834045475,4.90285573,203.97,203.92,25.82044214]
[1756834045661,0.69,203.96,203.89,13.59559401]
[1756834045862,12.91484813,203.96,203.88,26.0]
[1756834046076,0.69,204.02,203.95,12.22484813]
[1756834046281,12.91484813,204.01,203.95,12.22484813]
[1756834046454,0.69,204.0,203.96,13.59559401]
[1756834046650,26.0,204.06,203.93,12.22484813]
[1756834046651,12.91484813,203.99,203.93,12.22484813]
[1756834046884,26.0,204.06,203.89,26.0]
[1756834046885,12.22484813,203.97,203.89,26.0]
[1756834047060,12.22484813,203.96,203.9,25.82044214]
[1756834047696,12.91484813,203.97,203.92,13.59559401]
[1756834047856,0.69,203.96,203.92,13.59559401]
[1756834048056,12.22484813,203.98,203.92,12.22484813]
[1756834048381,17.12729142,203.98,203.92,12.22484813]
[1756834048552,12.22484813,203.94,203.87,5.03103324]
[1756834048751,12.91484813,203.94,203.88,25.82044214]
[1756834049073,12.91484813,203.94,203.9,13.59559401]
[1756834049276,12.91484813,203.96,203.9,25.82044214]
[1756834049445,12.22484813,203.95,203.9,13.59559401]
[1756834049648,0.69,203.95,203.9,25.82044214]
[1756834050156,4.90287513,203.97,203.9,25.82044214]
[1756834050367,12.22484813,203.96,203.89,13.59559401]
[1756834050553,12.22484813,203.96,203.9,12.22484813]
[1756834051171,12.22484813,203.97,203.92,13.59559401]
[1756834051378,0.69,203.96,203.92,13.59559401]
[1756834052068,0.69,203.95,203.9,13.59559401]
[1756834052270,12.22484813,203.99,203.94,13.59559401]
[1756834052469,12.91484813,203.99,203.94,13.59559401]
[1756834053066,0.69,203.99,203.94,25.82044214]
[1756834054257,4.90095746,204.05,203.98,25.82044214]
[1756834054461,17.12580559,204.05,204.0,13.59559401]
[1756834054674,12.91484813,204.04,203.95,0.98031625]
[1756834054982,12.22484813,204.02,203.98,13.59559401]
[1756834055185,0.69,204.02,203.96,13.59559401]
[1756834055360,12.91484813,204.02,203.98,13.59559401]
[1756834055564,12.91484813,204.01,203.98,13.59559401]
[1756834056079,0.69,204.01,203.97,13.59559401]
[1756834056260,0.06,203.99,203.97,13.59559401]
[1756834056457,0.06,203.99,203.97,25.82044214]
[1756834056656,0.06,203.99,203.95,13.59559401]
[1756834056861,0.75,203.99,203.92,13.59559401]
[1756834057065,0.75,203.99,203.95,12.22484813]
[1756834057270,0.06,203.99,203.95,12.22484813]
[1756834057464,0.06,203.99,203.92,13.59559401]
[1756834057666,0.75,203.99,203.95,13.59559401]
[1756834058165,0.06,203.99,203.98,25.82044214]
[1756834058766,0.06,203.99,203.98,13.59559401]
[1756834059066,12.97484813,203.99,203.91,0.632574]
[1756834059268,12.97484813,203.99,203.93,12.22484813]
[1756834059269,0.75,203.99,203.93,12.22484813]
[1756834059483,0.75,203.99,203.89,0.49]
[1756834059484,12.97484813,203.99,203.95,13.59559401]
[1756834059659,0.06,203.99,203.95,13.59559401]
[1756834059864,0.06,203.99,203.97,13.59559401]
[1756834060861,0.06,203.99,203.93,14.08559401]
[1756834061066,0.06,203.99,203.95,12.22484813]
[1756834062080,12.97484813,203.99,203.94,25.82044214]
[1756834062265,4.90244141,203.98,203.94,12.22484813]
[1756834062460,0.69,203.97,203.92,13.59559401]
[1756834062656,0.06,203.99,203.96,13.59559401]
[1756834062883,0.06,203.99,203.96,25.82044214]
[1756834063066,0.06,203.99,203.96,13.59559401]
[1756834063270,0.06,203.99,203.96,12.22484813]
[1756834065388,0.06,203.99,203.95,12.22484813]
[1756834066286,0.06,203.99,203.94,25.82044214]
[1756834066482,0.06,203.99,203.94,26.31044214]
[1756834066682,0.06,203.99,203.95,12.22484813]
[1756834066887,12.97484813,203.99,203.94,25.82044214]
[1756834067081,0.69,203.98,203.94,13.59559401]
[1756834067282,12.91484813,203.98,203.93,12.22484813]
[1756834067483,12.91484813,203.98,203.92,25.82044214]